Cogmind - Beta 10.2 --- EXPLORER MODE // 2021.02.04 @ 09:54:05 Player: Zia Result: Self-destructed Performance ------------- Evolutions (1) 500 Regions Visited (2) 400 Robots Destroyed (15) 75 Value Destroyed (348) 348 Prototype IDs (0) 0 Alien Tech Used (0) 0 Bonus (0) 0 TOTAL SCORE: 1323 Bonus ------- None Cogmind --------- Core Integrity 353/400 Matter 184/300 Energy 125/125 System Corruption 3% Temperature Cool (0) Movement Walking (120) Location -9/Materials Parts ------- > --- POWER (1) -------- Light Ion Engine > --- PROPULSION (3) --- Aluminum Leg > --- UTILITY (3) ------ Terrain Scanner > --- WEAPON (3) ------- Light Cannon > --- INVENTORY (4) ---- Light Ion Engine Large Storage Unit Power Shielding Light Assault Rifle Peak State ------------ > --- POWER ------------ Light Ion Engine > --- PROPULSION ------- Aluminum Leg > --- UTILITY ---------- Large Storage Unit Targeting Computer > --- WEAPON ----------- EM Pulse Gun Mining Laser > --- INVENTORY -------- Power Shielding Light Assault Rifle [Rating: 6] Favorites ----------- Power Light Ion Engine Engine Light Ion Engine Propulsion Aluminum Leg Leg Aluminum Leg Utility Targeting Computer Device Terrain Scanner Storage Large Storage Unit Processor Targeting Computer Protection Power Shielding Weapon EM Pulse Gun Energy Gun EM Pulse Gun Ballistic Gun Light Assault Rifle Ballistic Cannon Light Cannon Launcher Grenade Launcher Special Weapon Mining Laser Build | -11 -10 -9 ------- Run | Scr Mat Mat Slots Evolved 3 | . 1 2 Power . | . . . Propulsion 1 | . . 1 Utility 1 | . 1 . Weapon 1 | . . 1 Parts Attached 13 | 7 6 . Power 2 | 1 1 . Engine 2 | 1 1 . Core . | . . . Reactor . | . . . Propulsion 1 | 1 . . Treads . | . . . Leg 1 | 1 . . Wheel . | . . . Hover . | . . . Flight . | . . . Utility 4 | 2 2 . Device 1 | . 1 . Storage 1 | . 1 . Processor 1 | 1 . . Hackware . | . . . Protection 1 | 1 . . Artifact . | . . . Weapon 6 | 3 3 . Energy Gun 1 | 1 . . Energy Cannon . | . . . Ballistic Gun 1 | 1 . . Ballistic Cannon 1 | . 1 . Launcher 1 | . 1 . Special Weapon 2 | 1 1 . Impact Weapon . | . . . Slashing Weapon . | . . . Piercing Weapon . | . . . Special Melee Weapon . | . . . Unidentified Prototypes . | . . . Parts Lost 2 | . . 2 Power . | . . . Propulsion . | . . . Utility 1 | . . 1 Weapon 1 | . . 1 Highest Loss Streak 1 | . . 1 Average Slot Usage (%) 69 | . 72 58 Engine 11 | . 12 10 Leg 11 | . 12 10 Device 9 | . 8 10 Processor 11 | . 12 10 Energy Gun 8 | . 10 . Ballistic Cannon 2 | . 1 10 Launcher 2 | . 1 8 Special Weapon 8 | . 10 . Naked Turns . | . . . Heaviest Build 22 | 7 22 10 Greatest Support 10 | 10 10 10 Greatest Overweight (x) 2 | 2 2 . Average Overweight (x) . | . . . Largest Inventory Capacity 10 | 4 10 4 Average Capacity 4 | 4 4 4 Most Carried 4 | 2 4 4 Average Carried 3 | 1 3 4 Final Capacity 4 | 4 4 4 Final Carried 4 | 2 4 4 Class Distribution -------------------- 100% | Hacker-Mutant Dominant Class ---------------- Hacker-Mutant | -10/Materials Hacker-Mutant | -9/Materials Resources | -11 -10 -9 ----------- Run | Scr Mat Mat Matter Collected 330 | 242 68 20 Remotely . | . . . Salvage Created 417 | 80 302 35 Parts 28 | 3 24 1 Haulers Intercepted . | . . . Recyclers Shooed . | . . . Parts Field Recycled . | . . . Retrieved Matter . | . . . Parts Self-Destructed . | . . . Prevented . | . . . Kills | -11 -10 -9 ------- Run | Scr Mat Mat Combat Hostiles Destroyed 7 | . 6 1 Guns 3 | . 3 . Cannons 2 | . 1 1 AOE 2 | . 2 . Classes Destroyed 7 | 2 4 1 Worker 3 | . 1 2 Builder 1 | . 1 . Tunneler 1 | 1 . . Recycler 1 | 1 . . Watcher 2 | . 2 . Grunt 6 | . 6 . Sentry 1 | . . 1 Best Kill Streak 3 | 2 3 2 Combat Bots Only 3 | . 3 1 Max Kills in Single Turn 2 | 1 2 1 Gunslinging . | . . . Exploded 2 | . 2 . Melee . | . . . Uniques/NPCs Destroyed . | . . . Combat | -11 -10 -9 -------- Run | Scr Mat Mat Damage Taken 289 | 22 94 173 Core 69 | . 22 47 Absorbed by Shields . | . . . Core Remaining (%) 95 | 100 91 . Volleys Fired 42 | 5 23 14 Largest 2 | 1 2 2 Hottest 140 | 40 140 65 Shots Fired 52 | 5 29 18 Gun 26 | 5 21 . Cannon 9 | . . 9 Launcher 9 | . . 9 Special 8 | . 8 . Kinetic 9 | . . 9 Thermal 8 | . 8 . Explosive 9 | . . 9 Electromagnetic 26 | 5 21 . Robot Hit Streak 15 | 5 15 4 Robot Miss Streak 2 | . 2 . Penetration Max . | . . . Secondary Targets . | . . . Shots Hit Robots 24 | 5 15 4 Core Hits 28 | 2 15 11 Critical Hits . | . . . Critical Kills . | . . . Critical Parts Destroyed . | . . . Melee Attacks . | . . . Impact . | . . . Slashing . | . . . Piercing . | . . . Sneak Attacks . | . . . Combat Hostiles . | . . . Follow-up Attacks . | . . . Damage Inflicted 1060 | 144 406 510 Guns 272 | 69 203 . Cannons 142 | . . 142 Explosions 574 | 75 131 368 Melee . | . . . Ramming . | . . . Kinetic 142 | . . 142 Thermal 278 | 75 203 . Explosive 368 | . . 368 Electromagnetic 272 | 69 203 . Impact . | . . . Slashing . | . . . Piercing . | . . . Highest Corruption 3 | . . 3 Average Corruption 3 | . . 3 Corruption Purged . | . . . Overload Shots . | . . . Overflow Damage 44 | 5 . 39 Projectiles . | . . . Explosions 44 | 5 . 39 Melee . | . . . Knockbacks . | . . . Impact . | . . . Kinetic . | . . . Secondary . | . . . Self-Inflicted Damage 35 | 22 . 13 Shots 2 | 1 . 1 Rammed . | . . . Targets Rammed . | . . . Kicked . | . . . Crushed . | . . . Highest Temperature 42 | 7 42 10 Average Temperature 15 | 4 17 5 Received Heat Transfer 135 | . 90 45 Siege Activations . | . . . Robots Corrupted . | . . . Combat Hostiles . | . . . Parts Fried . | . . . Impact Corruptions . | . . . Robots Melted . | . . . Combat Hostiles . | . . . Parts Melted 1 | . 1 . Heat Transferred 350 | 100 250 . Parts Sabotaged . | . . . Parts Stolen . | . . . Parts Stripped . | . . . Power Chain Reactions 3 | 1 2 . Missiles Intercepted . | . . . Alert | -11 -10 -9 ------- Run | Scr Mat Mat Peak Influence 186 | 10 186 88 Initial 4 | . 4 . Average 37 | 4 45 23 Maximum Alert Level . | . . . Low Security (%) 100 | 100 100 100 Level 1 . | . . . Level 2 . | . . . Level 3 . | . . . Level 4 . | . . . Level 5 . | . . . High Security . | . . . Max Security . | . . . Squads Dispatched . | . . . Investigation . | . . . Extermination . | . . . Reinforcement . | . . . Assault . | . . . Garrison . | . . . Intercept . | . . . Construction Impeded . | . . . Haulers Reinforced . | . . . Stealth | -11 -10 -9 --------- Run | Scr Mat Mat Distress Signals . | . . . Communications Jammed . | . . . Distress Signals . | . . . Times Spotted 14 | . 9 5 Peak Tracking Total 3 | . 2 3 Tactical Retreats . | . . . Traps | -11 -10 -9 ------- Run | Scr Mat Mat Traps Triggered 1 | . 1 . Indirectly . | . . . Trap Hack Attempts . | . . . Triggered . | . . . Disarmed . | . . . Reprogrammed . | . . . Reused . | . . . Traps Extracted . | . . . Installed . | . . . Triggered . | . . . Machines | -11 -10 -9 ---------- Run | Scr Mat Mat Machines Disabled 2 | . . 2 Max in Single Turn 1 | . . 1 Machines Sabotaged . | . . . Garrisons Compromised . | . . . Overloaded Fab Kills . | . . . Fab Network Shutdowns . | . . . Hacking | -11 -10 -9 --------- Run | Scr Mat Mat Machines Accessed 7 | . 4 3 Terminals 6 | . 3 3 Fabricators . | . . . Repair Stations . | . . . Recycling Units 1 | . 1 . Scanalyzers . | . . . Garrison Access . | . . . Total Hacks 13 | . 8 5 Successful 11 | . 8 3 Failed 2 | . . 2 Catastrophic . | . . . Database Lockouts . | . . . Manual . | . . . Terminals 12 | . 7 5 Fabricators . | . . . Repair Stations . | . . . Recycling Units 1 | . 1 . Scanalyzers . | . . . Garrison Access . | . . . Terminal Hacks 10 | . 7 3 Record 1 | . . 1 Locate Traps 1 | . 1 . Surveillance Status 1 | . 1 . Assault Status 2 | . 1 1 Hauler Manifests 1 | . 1 . Registered Components 1 | . . 1 Zone Layout 3 | . 3 . Fabricator Hacks . | . . . Repair Station Hacks . | . . . Recycling Unit Hacks 1 | . 1 . Report Inventory 1 | . 1 . Scanalyzer . | . . . Garrison Access Hacks . | . . . Unauthorized Hacks . | . . . Terminals . | . . . Fabricators . | . . . Repair Stations . | . . . Recycling Units . | . . . Scanalyzers . | . . . Garrison Access . | . . . Data Cores Recovered . | . . . Used . | . . . Hacking Detections 4 | . 2 2 Full Trace Events . | . . . Feedback Events . | . . . Feedback Blocked . | . . . Robot Schematics Acquired . | . . . Robots Built . | . . . Matter . | . . . Time . | . . . Total Robot Build Rating . | . . . Part Schematics Acquired . | . . . Parts Built . | . . . Matter . | . . . Time . | . . . Total Part Build Rating . | . . . Parts Repaired . | . . . Time . | . . . Parts Recycled . | . . . Recycled Matter . | . . . Retrieved Matter . | . . . Retrieved Components . | . . . Parts Scanalyzed . | . . . Part Schematics Acquired . | . . . Parts Damaged . | . . . Bothacking | -11 -10 -9 ------------ Run | Scr Mat Mat Used RIF Installer . | . . . Robots Hacked . | . . . Non-combat . | . . . Combat . | . . . Robot Hacks Applied . | . . . Relay Couplers Released . | . . . Robots Rewired . | . . . Allies Hacked . | . . . Hacks Repelled . | . . . Allies | -11 -10 -9 -------- Run | Scr Mat Mat Total Allies . | . . . Largest Group . | . . . Highest-Rated Group . | . . . Highest-Rated Ally . | . . . Total Orders . | . . . Ally Attacks . | . . . Total Damage . | . . . Kills . | . . . Allies Corrupted . | . . . Allies Melted . | . . . Intel | -11 -10 -9 ------- Run | Scr Mat Mat Robot Analysis Total . | . . . Derelict Logs Recovered . | . . . Drone Launches . | . . . Drone Recoveries . | . . . Exploration | -11 -10 -9 ------------- Run | Scr Mat Mat Turns Passed 1468 | 151 1060 257 Spaces Moved 1116 | 117 812 187 Core 35 | 35 . . Treads . | . . . Legs 1081 | 82 812 187 Wheels . | . . . Hover . | . . . Flight . | . . . Fastest Speed 50 | 50 120 120 Average Speed 119 | 108 120 120 Slowest Speed 180 | 150 180 120 Overloaded Moves . | . . . Propulsion Burnouts . | . . . Robots Hopped . | . . . Cave-ins Triggered 1 | . . 1 Exploration Rate (%) 33 | 5 78 18 Regions Visited 2 Branch Regions . Pre-discovered Areas . | . . . Known Exits Taken 2 | 1 1 . Unknown Exits Taken . | . . . Scrap Searched . | . . . Spaces Dug 3 | . 3 . Terrain Destroyed 62 | 5 7 50 Melee . | . . . Projectile 4 | . 4 . AOE 58 | 5 3 50 Terrain Rammed . | . . . Walls Destroyed . | . . . Machines Disabled . | . . . Actions | -11 -10 -9 --------- Run | Scr Mat Mat Total 1179 | 133 845 201 Wait 3 | 3 . . Move 1114 | 116 811 187 Hop . | . . . Pick Up . | . . . Fast Attach 13 | 7 6 . Attach . | . . . Detach 4 | 2 2 . Swap . | . . . Drop 3 | . 3 . Fire 42 | 5 23 14 Melee . | . . . Ram . | . . . Kick . | . . . Crush . | . . . Escape Stasis . | . . . Rewire . | . . . Trap . | . . . Miscellaneous . | . . . Route ------- -11/Scrapyard -10/Materials (discovered 4 exits: *Mat x2 / *Min x2) -9/Materials History --------- Turn | Location | Event 14 | -11/Scrapyard | Identified exit to Materials 14 | -11/Scrapyard | Discovered exit to Materials (range 16) 152 | -11/Scrapyard | Entered Materials 152 | -10/Materials | Evolved 1 slot: Utility x1 310 | -10/Materials | Build established: Hacker-Mutant 393 | -10/Materials | Identified exit to Mines 393 | -10/Materials | Discovered exit to Mines (range 15) 705 | -10/Materials | Discovered exit to Mines (range 5) 741 | -10/Materials | Identified exit to Materials 741 | -10/Materials | Discovered exit to Materials (range 16) 1079 | -10/Materials | Discovered exit to Materials (range 16) 1212 | -10/Materials | Entered another Materials area 1212 | -9/Materials | Evolved 2 slots: Propulsion x1, Weapon x1 1468 | -9/Materials | Crushed by falling debris 1469 | -9/Materials | Self-destructed Last Messages --------------- 01331_ K-01 Serf cleans the Material Compactor. 01356_ K-01 Serf destroyed. 01360_ Destroyed Hover Unit. 01360_ Destroyed Sensor Array. 01360_ Material Compactor disabled. 01362_ K-01 Serf collects debris. 01381_ The unstable cave ceiling collapses. 01426_ Processing Tank disabled. 01435_ Y-45 Defender destroyed. 01436_ Grenade Launcher destroyed. 01462_ The unstable cave ceiling collapses. 01463_ Processing Tank disabled. 01468_ The unstable cave ceiling collapses. 01468_ Crushed by falling debris. [Achievement: Unlikely Earthworm] The achievement interface (ESC then open Records) offers an effective way to explore all of your earned achievements as well as seek out new goals for future runs. 01468_ Targeting Computer destroyed. 01468_ System corrupted by crushing effect (+3). Map ----- +----------------------------------------------------+ | ?????????????????????????????????????????? | | ?????????????????????????????????????????? | | ?????????????????????????????????????????? | | ?????????????????????????????????????????? | | ?????????????????????????????????????????? | | ?????????????????????????????????????????? | | ?????????????????????????????????????????? | | ?????????????????????????????????????????? | | ?????????????????????????????????????????? | | ?????????????????????????????????????????? | | ?????????????????????????????????????????? | | ?????????????????????????????????????????? | | ?????????????????????????????????????????? | | ??????????????????????????? ???????????? | | ???????########???????????? #??????????? | | ???????# #???????????? #??????????? | | ???????# """ #???????????? #??????????? | | ???????# """ [#???????????# ##?????????? | | ???????# """ #??????????? #?????????? | | ???????# #??????????? #?????????? | | ???????# #??????????? #?????????? | | ??????#####+########?????? #?????????? | | ??????# #???? #?????????? | | ??????# ############### #??????????? | | ####### #????# Y # #! #? | | ###### "" " @# T ?? | | + """"" % """ ?? | | ######## """"" """ !????? | | ############?# r """ ?????? | | # "T" = #?# """"" ?????? | | ## #?# """" ## ????? | | ## """ #?# """"" ???? | | #### """"" #?# ######## ####??? | | #???# """"" #?##########????????#?????? | | ????# """"" #?????????????????????????? | | ????# """ #?????????????????????????? | | #????# #?????????????????????????? | | #????#####+#####?????????????????????????? | | ######## #???????????????????????????? | | #???????????????????????????? | | T #???????????????????????????? | | #???????????????????????????? | | ######## #???????????????????????????? | | ???????## ##???????????????????????????? | | ????????# #????????????????????????????? | | ????????# #????????????????????????????? | | ????????# #????????????????????????????? | | ????????# #????????????????????????????? | | ????????# #????????????????????????????? | | ????????# ############?????????????????? | +----------------------------------------------------+ Best States ------------- Heat Dissipation 28 Energy Generation 10 Energy Capacity 125 Matter Stores 300 Matter Capacity 300 Sight Range 16 Terrain Scan Range 14 Terrain Scan Density 10 Resistance: KI 35 Resistance: TH 35 Resistance: EX 35 Resistance: EM 35 Resistance: I 35 Resistance: S 35 Resistance: P 35 Power Shielding 33 Evasion (%) 50 Targeting Accuracy 5 Offensive Hacking 20 Item Schematics ----------------- None Robot Schematics ------------------ None Fabricated ------------ Nothing Alien Tech Used ----------------- None Achievements -------------- Unlikely Earthworm Challenges ------------ None Game ------ Seed CentriumAntimatterTreads Manual? 0 Play Time 00:25:19 Cumulative 2.2 hours Start 2021.02.01 @ 16:22:05 End 2021.02.04 @ 09:54:05 Sessions 8 Manual Loads 0 Difficulty Explorer Special Mode None Game No. 6 Rogue 2 Adventurer 0 Explorer 4 Win Type - Total 0 Types 0/0/0/0/0/0/0/0/0 Lore% 1 Gallery% 4 Achievement% 3 Wizard Run 0 Options --------- ASCII 0 Keyboard 0 Movement Arrows Keybinds 0 Fullscreen 0 Font 16/SmallcapsGlow Map View 76x50 Tactical HUD 1 Map Filters NONE Filters NONE Steam 1 RUN: ab10769b-dcac-46ae-8c17-bf7f9e77ae1d